bitfinex/quotes_ETHUSD_20250415
["timestamp","ask_amount","ask_price","bid_price","bid_amount"]
[1744727347222,6.19781,1613.5,1613.1,19.96089]
[1744727347411,6.19817,1613.4,1613.1,19.96082]
[1744727347587,12.39491,1613.6,1613.2,6.19855]
[1744727347788,4.00612348,1614.0,1613.3,6.19811]
[1744727347989,6.19751,1613.6,1613.3,12.39644]
[1744727348326,6.19589,1614.0,1613.6,6.19696]
[1744727348526,11.29440297,1614.1,1613.5,1.6216]
[1744727348727,6.19635,1613.9,1613.5,7.81925]
[1744727348911,6.19635,1613.9,1613.6,6.19722]
[1744727349101,6.1962,1613.9,1613.6,12.3944]
[1744727349432,6.1962,1613.9,1613.6,6.19719]
[1744727349737,1.6149,1614.3,1613.6,0.06197322]
[1744727349900,6.19473,1614.3,1614.0,6.19574]
[1744727350097,7.80848,1614.6,1614.2,6.1949]
[1744727350303,7.80848,1614.6,1614.0,0.619574]
[1744727350304,12.38654,1614.7,1614.3,6.19445]
[1744727350615,6.19285,1614.8,1614.3,1.617]
[1744727350790,6.19285,1614.8,1614.4,6.19408]
[1744727350986,30.0,1615.0,1614.3,1.617]
[1744727350987,6.19368,1614.6,1614.3,1.617]
[1744727351228,3.47074338,1614.9,1614.3,1.617]
[1744727351431,6.19316,1614.7,1614.3,7.81134]
[1744727351630,6.19279,1614.8,1614.4,6.19408]
[1744727351819,6.19335,1614.7,1614.3,7.8115]
[1744727352024,36.19196,1615.0,1614.3,14.006]
[1744727352203,6.19323,1614.7,1614.4,6.19423]
[1744727352739,6.19238,1614.9,1614.5,6.19362]
[1744727353034,12.38565,1614.8,1614.4,13.789033]
[1744727353205,12.3876,1614.6,1614.3,1.617]
[1744727353403,6.19404,1614.5,1614.3,1.617]
[1744727353707,6.19314,1614.7,1614.3,7.8114]
[1744727353918,6.1935,1614.6,1614.3,7.8114]
[1744727354222,6.19402,1614.5,1614.3,1.617]
[1744727354734,6.19271,1614.8,1614.1,15.41634]
[1744727354735,3.0,1614.7,1614.1,10.7669]
[1744727354897,6.19447,1614.4,1614.1,10.7669]
[1744727355234,6.19468,1614.3,1614.1,10.7669]
[1744727355441,6.19468,1614.3,1613.8,1.5392]
[1744727355442,1.238899,1614.3,1613.8,1.5392]
[1744727355598,12.38958,1614.3,1613.9,6.19593]
[1744727355930,6.1935,1614.6,1613.8,7.73569]
[1744727355931,12.39037,1614.2,1613.8,7.73569]
[1744727356100,6.19504,1614.2,1613.8,7.73563]
[1744727356301,3.0,1614.5,1613.8,7.73574]
[1744727356541,3.0,1614.5,1613.8,7.73567]
[1744727356696,6.19485,1614.3,1613.8,2.31896305]
[1744727356896,6.19376,1614.6,1613.8,2.31896305]
[1744727357097,6.19376,1614.6,1614.3,6.1946]
[1744727357098,12.38721,1614.6,1614.3,6.1946]
[1744727357298,9.66524207,1614.9,1614.4,6.194]
[1744727357299,3.0,1614.9,1614.4,6.194]
[1744727357625,6.19361,1614.6,1614.3,6.19455]
[1744727357996,6.19361,1614.6,1614.2,6.19492]
[1744727358198,12.38736,1614.6,1614.2,12.38984]
[1744727358396,12.38736,1614.6,1614.2,13.779784]
[1744727358608,12.3864,1614.7,1614.3,6.19447]
[1744727358839,9.19233,1614.9,1614.2,7.584824]
[1744727358840,6.19359,1614.6,1614.2,7.584824]
[1744727359020,12.38744,1614.6,1614.2,12.38972]
[1744727359225,6.19391,1614.5,1614.2,6.19485]
[1744727359543,6.19391,1614.5,1614.1,7.70492]
[1744727359749,12.38722,1614.6,1614.3,6.19451]
[1744727359914,6.19355,1614.6,1614.3,6.19451]
[1744727360245,6.19318,1614.7,1614.3,6.19451]
[1744727360246,6.19322,1614.7,1614.4,6.19423]
[1744727360414,12.38514,1614.9,1614.5,6.19369]
[1744727360607,6.19236,1614.9,1614.6,6.19332]
[1744727360801,6.19287,1614.8,1614.5,6.19386]
[1744727361004,36.19208,1615.0,1614.6,6.19335]
[1744727361352,30.0,1615.0,1614.9,6.19233]
[1744727361646,30.0,1615.0,1614.7,7.84651]
[1744727361827,30.0,1615.0,1614.5,3.0]
[1744727361828,30.0,1615.0,1614.5,6.19352]
[1744727362028,30.0,1615.0,1614.8,6.19244]
[1744727362351,30.0,1615.0,1614.9,1.5751]
[1744727362705,30.0,1615.0,1614.9,7.76743]
[1744727363598,30.0,1615.0,1614.9,1.5751]
[1744727363802,36.1921,1615.0,1614.7,6.193]
[1744727364018,42.38433,1615.0,1614.6,13.91922]
[1744727364242,30.0,1615.0,1614.6,1.5324]
[1744727364445,6.193,1614.8,1614.6,1.5324]
[1744727364847,30.0,1615.0,1614.8,6.1926]
[1744727365053,30.0,1615.0,1614.9,6.19233]
[1744727365918,30.0,1615.0,1614.9,26.42169981]
[1744727366546,30.0,1615.0,1614.9,25.87169981]
[1744727366716,30.0,1615.0,1614.9,29.69737579]
[1744727367049,30.0,1615.0,1614.9,30.24737579]
[1744727367346,30.0,1615.0,1614.9,29.69737579]
[1744727367560,30.0,1615.0,1614.9,7.71623]
[1744727367849,30.0,1615.0,1614.9,10.71623]
[1744727368409,30.0,1615.0,1614.9,7.71623]
[1744727370821,30.0,1615.0,1614.9,1.5239]
[1744727371019,30.0,1615.0,1614.6,7.76253]
[1744727371255,6.19249,1614.9,1614.5,6.19374]
[1744727371461,6.19246,1614.9,1614.6,12.38664]
[1744727371805,30.0,1615.0,1614.7,6.19303]
[1744727372210,30.0,1615.0,1614.8,6.19259]
[1744727372410,30.0,1615.0,1614.9,6.19233]
[1744727372852,30.0,1615.0,1614.8,1.5711]
[1744727373035,36.19206,1615.0,1614.8,1.5711]
[1744727373354,30.0,1615.0,1614.9,6.19233]
[1744727374917,30.0,1615.0,1614.8,1.5711]
[1744727375114,6.19244,1614.9,1614.6,14.04512]
[1744727375373,31.6479,1615.0,1614.3,1.6583]
[1744727375645,6.19435,1614.4,1614.1,6.19529]
[1744727375864,6.19435,1614.4,1614.1,6.19534]
[1744727376046,6.19399,1614.5,1614.2,6.19501]
[1744727376353,7.82528,1614.6,1614.0,7.70537]
[1744727376651,7.82528,1614.6,1613.7,1.5199]
[1744727376652,6.1959,1614.0,1613.7,1.5199]
[1744727376859,6.19578,1614.0,1613.4,1.5274]
[1744727377014,6.19713,1613.7,1613.3,12.39659]
[1744727377219,6.19713,1613.7,1613.3,6.19829]
[1744727377419,6.19785,1613.5,1613.2,7.72624]
[1744727377651,6.19812,1613.4,1613.2,1.5274]
[1744727377816,6.19852,1613.3,1613.0,16.96715]
[1744727378052,12.39649,1613.4,1613.0,7.77515]
[1744727378246,12.39649,1613.4,1612.7,14.27679064]
[1744727378247,6.19938,1613.1,1612.7,14.27679064]
[1744727378480,6.20016,1612.9,1612.7,6.50042064]
[1744727378943,6.19993,1613.0,1612.7,6.50042064]
[1744727379149,12.3998,1613.0,1612.7,6.50042064]
[1744727379350,6.19991,1613.0,1612.7,6.50042064]
[1744727379675,17.0058,1613.3,1612.7,6.50042064]
[1744727379676,6.20039,1612.8,1612.7,6.50042064]
[1744727379872,6.20018,1612.9,1612.7,6.50042064]
[1744727380179,12.40045,1612.9,1612.7,6.50042064]
[1744727380484,6.20094,1612.7,1612.2,65.31675]
[1744727380691,6.20031,1612.9,1612.4,6.20178]
[1744727380890,6.20043,1612.8,1612.4,6.20178]
[1744727381090,6.20043,1612.8,1612.4,12.40357]
[1744727381384,7.72626,1613.0,1612.6,6.20113]
[1744727381587,13.92612,1613.0,1612.6,6.20113]
[1744727381759,7.72626,1613.0,1612.6,6.20113]
[1744727381961,6.19966,1613.0,1612.6,6.20094]
[1744727382273,6.19847,1613.3,1612.9,6.19973]
[1744727382470,3.0,1613.3,1612.9,6.19988]
[1744727382686,6.19888,1613.2,1612.9,6.19988]
[1744727382987,1.6471,1613.4,1613.0,6.19946]
[1744727383347,49.8528,1613.7,1613.1,6.19894]
[1744727383589,6.19756,1613.6,1613.2,6.19873]
[1744727383756,12.39522,1613.6,1613.2,6.19873]
[1744727383963,7.75475,1613.7,1613.0,6.19956]
[1744727384150,7.75475,1613.7,1612.7,7.85492]
[1744727384151,6.19809,1613.4,1612.7,7.85492]
[1744727384354,9.1977,1613.5,1612.6,6.20114]
[1744727384355,6.19999,1613.0,1612.6,6.20114]
[1744727384553,1.5578,1613.2,1612.5,6.20148]
[1744727384554,6.20003,1612.9,1612.5,6.20148]
[1744727384750,6.19978,1613.0,1612.6,6.201]
[1744727384985,12.39963,1613.0,1612.6,6.201]
[1744727385181,1.5578,1613.2,1612.7,6.20053]
[1744727385182,12.39879,1613.1,1612.7,6.20053]
[1744727385355,12.39886,1613.1,1612.7,6.20053]
[1744727385571,6.19963,1613.0,1612.7,6.20053]
[1744727385772,12.3995,1613.0,1612.6,6.20104]
[1744727386168,6.20004,1612.9,1612.6,6.20104]
[1744727386517,6.20078,1612.7,1612.2,6.20254]
[1744727386684,6.20092,1612.7,1612.3,6.20207]
[1744727387011,6.2013,1612.6,1612.2,6.20265]
[1744727387307,6.2013,1612.6,1612.2,12.40513]
[1744727387511,6.20123,1612.6,1612.3,6.2022]
[1744727388174,6.20123,1612.6,1612.2,12.40508]
[1744727388508,6.20174,1612.5,1612.1,6.25308]
[1744727388810,7.441426,1612.6,1612.2,6.20262]
[1744727388992,6.20158,1612.5,1612.2,6.20262]
[1744727389190,12.40267,1612.6,1612.1,6.25307]
[1744727389392,6.20122,1612.6,1612.1,12.45597]
[1744727389598,6.66787218,1612.7,1612.2,6.20252]
[1744727390117,6.20121,1612.6,1612.2,6.20252]
[1744727390902,12.40255,1612.6,1612.2,6.20252]
[1744727391104,6.20121,1612.6,1612.2,12.40507]
[1744727391406,1.5583,1612.8,1612.3,6.20201]
[1744727391701,1.5583,1612.8,1612.1,0.05]
[1744727391900,1.5583,1612.8,1612.5,6.20131]
[1744727392200,7.82101,1613.1,1612.7,6.20066]
[1744727392407,14.02062,1613.1,1612.7,6.20066]
[1744727392600,7.82101,1613.1,1612.7,12.40129]
[1744727392806,4.5162,1613.3,1612.8,6.20002]
[1744727393012,6.19931,1613.1,1612.7,12.40137]
[1744727393213,7.71495,1613.3,1612.8,6.20003]
[1744727393373,3.0,1613.2,1612.9,6.19996]
[1744727393573,1.5162,1613.3,1613.0,6.1994]
[1744727393797,1.45421,1613.3,1613.0,6.1994]
[1744727394004,6.19903,1613.2,1612.8,13.96466]
[1744727394185,6.19903,1613.2,1612.8,6.20023]
[1744727394679,9.67616953,1613.4,1612.7,6.20071]
[1744727394680,15.87434953,1613.4,1612.7,6.20071]
[1744727394883,6.19967,1613.0,1612.6,6.20112]
[1744727395208,6.2003,1612.9,1612.5,6.20142]
[1744727395408,6.20137,1612.6,1612.2,6.20265]
[1744727395573,12.4028,1612.6,1612.2,12.4052]
[1744727395775,6.20089,1612.7,1612.4,6.20182]
[1744727395971,6.20089,1612.7,1612.3,6.20223]
[1744727395972,12.40189,1612.7,1612.3,6.20223]
[1744727396175,6.20078,1612.7,1612.3,6.20223]
[1744727396714,6.20078,1612.7,1612.4,6.20187]
[1744727396887,12.40172,1612.7,1612.4,6.20187]
[1744727397091,6.20078,1612.7,1612.4,6.20187]
[1744727397315,6.20078,1612.7,1612.3,6.20219]
[1744727397607,17.01993,1612.8,1612.4,6.20163]
[1744727397799,17.01993,1612.8,1612.4,12.40341]
[1744727397970,17.01993,1612.8,1612.4,6.20163]
[1744727398172,6.20092,1612.7,1612.3,6.20224]
[1744727398371,6.20092,1612.7,1612.3,6.2022]
[1744727398573,7.17943558,1612.7,1612.1,0.05]
[1744727398916,6.20087,1612.7,1612.4,6.20188]
[1744727399416,12.40189,1612.7,1612.3,6.20216]
[1744727399618,6.20087,1612.7,1612.3,12.40434]
[1744727399803,10.81946,1612.8,1612.4,6.20179]
[1744727399974,6.20098,1612.7,1612.3,12.40433]
[1744727400176,6.20098,1612.7,1612.4,6.20189]
[1744727400382,4.6189,1612.8,1612.2,6.20256]
[1744727400580,1.6189,1612.8,1612.1,0.05]
[1744727400816,6.20163,1612.5,1612.1,0.05]
[1744727401016,3.0,1612.6,1612.3,6.2021]
[1744727401317,1.6196,1613.1,1612.3,0.06202627]
[1744727401614,12.40062,1612.9,1612.5,6.20149]
[1744727401911,12.40062,1612.9,1612.3,6.20226]
[1744727401912,6.20079,1612.7,1612.4,6.20179]
[1744727402288,6.20199,1612.4,1612.1,0.05]
[1744727402505,12.40486,1612.3,1612.1,0.05]
[1744727402715,6.20232,1612.3,1612.1,0.05]
[1744727403017,6.2017,1612.5,1612.1,6.25297]
[1744727403217,1.5324,1612.3,1612.1,0.05]
[1744727403413,7.73482,1612.3,1612.1,0.05]
[1744727403622,6.7527,1612.2,1612.1,0.05]
[1744727403793,11.3453,1612.2,1612.1,0.05]
[1744727404122,1.6107,1611.8,1611.2,6.2062]
[1744727404367,6.20553,1611.5,1611.2,6.2062]
[1744727404501,6.20553,1611.5,1611.2,6.20652]
[1744727404819,7.81502,1611.8,1611.3,6.20609]
[1744727404820,4.6107,1611.8,1611.3,6.20609]
[1744727404981,6.20482,1611.7,1611.3,6.20609]
[1744727405340,7.286342,1611.7,1611.1,0.05]
[1744727405634,6.20518,1611.6,1611.3,6.20602]
[1744727405795,1.6107,1611.8,1611.6,6.20474]
[1744727405993,1.6107,1611.8,1611.3,1.6367]
[1744727406211,6.20393,1611.9,1611.6,6.20476]
[1744727406410,10.71251,1612.1,1611.5,6.20532]
[1744727406713,7.71262,1612.1,1611.8,6.20416]
[1744727407082,1.5094,1612.1,1611.9,6.20384]
[1744727407404,6.2034,1612.1,1611.7,6.20456]
[1744727407587,7.71167,1611.9,1611.5,6.20539]
[1744727407919,1.5077,1611.9,1611.6,6.20484]
[1744727408312,1.5077,1611.9,1611.7,6.2044]
[1744727408607,1.5077,1611.9,1611.6,12.40988]
[1744727408808,7.71158,1611.9,1611.6,6.20489]
[1744727409030,7.71158,1611.9,1611.6,6.20492]
[1744727409438,1.5077,1611.9,1611.4,6.20578]
[1744727409727,6.20452,1611.8,1611.4,6.20565]
[1744727410030,9.20424,1611.8,1611.2,6.20641]
[1744727410200,6.2054,1611.5,1611.1,12.46372]
[1744727410400,6.2054,1611.5,1611.1,6.25686]
[1744727410799,6.2059,1611.4,1611.1,6.25686]
[1744727411415,1.6436,1611.7,1611.2,6.20655]
[1744727411590,6.51343059,1612.2,1611.2,6.20655]
[1744727411591,2.10703059,1612.2,1611.9,6.20385]
[1744727411787,6.20345,1612.1,1611.7,6.20449]
[1744727412014,1.5522,1612.4,1611.7,1.5605]
[1744727412218,1.5522,1612.7,1612.0,6.20346]
[1744727412521,9.182,1613.0,1612.7,6.20043]
[1744727412522,1.5522,1613.0,1612.7,6.20043]
[1744727412724,6.20023,1612.9,1612.6,6.20103]
[1744727413020,9.19935,1613.1,1612.7,6.20041]
[1744727413323,7.78823,1613.2,1612.4,6.26393971]
[1744727413526,9.182,1613.4,1612.8,6.20017]
[1744727413822,9.182,1613.4,1612.6,12.40206]
[1744727413823,6.19985,1613.0,1612.6,12.40206]
[1744727414118,6.20044,1612.8,1612.1,11.361246]
[1744727414321,6.20094,1612.7,1612.4,6.20191]
[1744727414507,6.75032,1612.9,1612.2,6.20263]
[1744727414708,1.6245,1613.0,1612.1,16.94398]
[1744727414915,3.0,1612.9,1612.5,12.40266]
[1744727415084,7.78488,1613.2,1612.8,6.20017]
[1744727415289,1.5859,1613.2,1612.7,6.20078]
[1744727415621,1.5859,1613.2,1612.9,6.19982]
[1744727415807,6.1985,1613.3,1612.9,6.19982]
[1744727416125,16.45413,1613.4,1612.6,4.6122]
[1744727416126,9.182,1613.4,1612.6,4.6122]
[1744727416327,7.83139,1613.8,1613.1,7.71284]
[1744727416493,1.6348,1613.8,1613.2,6.19872]
[1744727416693,6.19784,1613.5,1613.1,7.71278]
[1744727416889,6.19831,1613.4,1613.0,6.19951]
[1744727417122,6.818331,1613.3,1612.9,6.19997]
[1744727417291,7.83291,1613.4,1613.0,6.19946]
[1744727417714,14.03123,1613.4,1613.0,6.19946]
[1744727417923,1.6348,1613.4,1613.0,6.1993]
[1744727418109,7.83299,1613.4,1613.0,6.1993]
[1744727418431,1.6348,1613.4,1613.0,6.19931]
[1744727418631,7.83299,1613.4,1613.0,12.39872]
[1744727419006,9.19734,1613.6,1613.2,6.1986]
[1744727419205,10.893782,1613.6,1613.2,6.1986]
[1744727419439,6.19788,1613.5,1613.2,6.19883]
[1744727419629,10.893822,1613.6,1613.2,6.19871]
[1744727420002,10.893822,1613.6,1613.2,12.39738]
[1744727420202,10.893822,1613.6,1613.2,6.19867]
[1744727420399,13.96427,1613.7,1613.3,6.19833]
[1744727421157,9.1963,1613.9,1613.3,6.19843]
[1744727421458,6.05,1614.3,1613.3,6.19843]
[1744727421459,1.5728,1614.3,1614.0,6.19566]
[1744727421747,12.43882,1614.4,1614.0,6.19565]
[1744727421971,13.839982,1614.4,1614.0,6.19565]
[1744727422134,0.05,1614.4,1613.8,7.72795]
[1744727422453,6.24451,1614.4,1613.9,12.39197]
[1744727422745,6.19738,1613.6,1613.2,7.75782]
[1744727422898,6.19738,1613.6,1613.2,13.95655]
[1744727423095,6.19738,1613.6,1613.2,7.75782]
[1744727423343,6.19821,1613.4,1613.0,13.95828]
[1744727423641,6.19889,1613.2,1612.9,6.19996]
[1744727424024,6.19847,1613.3,1612.9,6.19984]
[1744727424222,7.82652,1613.5,1612.8,6.20033]
[1744727424424,7.82652,1613.5,1613.1,6.19909]
[1744727424593,1.1446258,1613.5,1612.9,6.20001]
[1744727424798,1.6288,1613.9,1613.6,6.19715]
[1744727424996,6.19579,1614.0,1613.6,6.19732]
[1744727425248,1.6288,1614.2,1613.5,1.5925]
[1744727425249,6.19676,1613.8,1613.5,1.5925]
[1744727425399,6.1954,1614.1,1613.4,6.19785]
[1744727425734,12.39581,1613.5,1613.2,1.5925]
[1744727425896,1.6288,1613.7,1613.0,10.7685]
[1744727426093,6.19661,1613.8,1613.5,6.19765]
[1744727426298,9.19655,1613.8,1613.4,6.19777]
[1744727426533,15.39333,1613.8,1613.4,6.19777]
[1744727426697,3.0,1613.8,1613.5,6.1977]
[1744727426896,6.19603,1614.0,1613.6,6.19711]
[1744727427110,7.82397,1614.2,1613.9,6.19611]
[1744727427311,7.87306,1614.4,1614.0,6.19563]
[1744727427558,0.05,1614.4,1614.2,6.19482]
[1744727427942,0.05,1614.4,1614.1,6.19535]
[1744727428266,6.2444,1614.4,1614.1,6.19521]
[1744727428556,6.1949,1614.3,1613.8,7.78901]
[1744727428718,6.1949,1614.3,1613.9,6.19596]
[1744727428918,6.19525,1614.2,1613.8,7.78892]
[1744727429119,6.1963,1613.9,1613.6,1.5364]
[1744727429358,6.1963,1613.9,1613.6,6.19727]
[1744727429563,12.39279,1613.9,1613.5,6.19747]
[1744727429750,6.19673,1613.8,1613.4,7.73434]
[1744727429946,6.19673,1613.8,1613.5,6.1975]
[1744727430156,6.19723,1613.7,1613.4,1.5364]
[1744727430336,6.19723,1613.7,1613.3,15.34233]
[1744727430537,6.19723,1613.7,1613.4,6.19796]
[1744727430952,3.0,1614.0,1613.5,6.1977]
[1744727431254,6.19637,1613.9,1613.6,6.19732]
[1744727431551,6.19579,1614.0,1613.6,6.19715]
[1744727431760,6.1962,1613.9,1613.5,6.1976]
[1744727431958,9.1954,1614.1,1613.3,9.144]
[1744727431959,6.1959,1614.0,1613.6,6.19706]
[1744727432161,1.5788,1614.2,1613.9,6.19584]
[1744727432335,16.98271,1614.4,1613.6,0.619706]
[1744727432535,12.39115,1614.1,1613.7,6.19692]
[1744727432733,6.19586,1614.0,1613.6,6.19718]
[1744727432938,6.19666,1613.8,1613.5,1.5736]
[1744727433255,6.19624,1613.9,1613.5,7.77116]
[1744727433452,6.19709,1613.7,1613.4,6.19801]
[1744727433654,7.436462,1613.7,1613.4,6.19808]
[1744727433831,6.19655,1613.8,1613.2,6.19881]
[1744727434027,6.19797,1613.5,1613.1,60.74926]
[1744727434227,6.19732,1613.6,1613.1,48.351]
[1744727434449,1.514,1614.0,1613.4,6.19794]
[1744727434676,1.514,1614.0,1613.5,6.19759]
[1744727434677,6.19624,1613.9,1613.5,6.19759]
[1744727434852,6.19672,1613.8,1613.5,6.19759]
[1744727435059,6.19624,1613.9,1613.5,6.19757]
[1744727435368,15.39129,1614.1,1613.7,6.19672]
[1744727435572,7.564,1614.3,1613.8,6.19649]
[1744727435573,6.19516,1614.2,1613.8,6.19649]
[1744727435763,1.514,1614.3,1613.9,6.19588]
[1744727435961,9.194,1614.4,1613.9,6.19588]
[1744727435962,12.43874,1614.4,1614.0,6.19548]
[1744727436161,6.24428,1614.4,1614.1,6.19516]
[1744727436359,0.05,1614.4,1614.3,6.19463]
[1744727436775,0.05,1614.4,1614.2,13.89475]
[1744727436973,0.05,1614.4,1614.2,1.5049]
[1744727437276,0.05,1614.4,1614.1,6.19531]
[1744727437671,0.05,1614.4,1614.3,6.19463]
[1744727438186,0.05,1614.4,1614.3,7.76146845]
[1744727438555,0.05,1614.4,1614.3,8.31146845]
[1744727438754,0.05,1614.4,1614.3,11.31146845]
[1744727438954,1e-05,1614.4,1614.3,11.24953]
[1744727439267,1e-05,1614.4,1614.3,12.993966]
[1744727439469,33.95503062,1615.0,1614.8,7.69744]
[1744727439775,30.0,1615.0,1614.8,7.69743]
[1744727440166,30.0,1615.0,1614.8,13.88995]
[1744727440387,30.0,1615.0,1614.8,7.69742]
[1744727440893,30.0,1615.0,1614.9,6.19233]
[1744727441186,30.0,1615.0,1614.8,7.69742]
[1744727441392,30.0,1615.0,1614.8,13.88996]
[1744727441579,30.0,1615.0,1614.8,7.69742]
[1744727441781,30.0,1615.0,1614.6,3.0]
[1744727441782,36.19209,1615.0,1614.6,9.19336]
[1744727441985,6.19237,1614.9,1614.5,23.07937]
[1744727442289,6.19272,1614.8,1614.5,10.6919]
[1744727442455,6.19241,1614.9,1614.5,16.88575]
[1744727442655,6.19241,1614.9,1614.6,6.19335]
[1744727442857,36.19217,1615.0,1614.6,6.19333]
[1744727443057,30.0,1615.0,1614.6,1.688523]
[1744727443293,30.0,1615.0,1614.8,12.38505]
[1744727443602,30.0,1615.0,1614.9,6.19233]
[1744727443903,30.0,1615.0,1614.9,10.84953]
[1744727444865,30.0,1615.0,1614.9,7.84953]
[1744727445069,30.0,1615.0,1614.9,1.6572]
[1744727445390,30.0,1615.0,1614.9,11.634501]
[1744727446094,30.0,1615.0,1614.9,8.634501]
[1744727446396,30.0,1615.0,1614.9,9.184501]
[1744727446783,30.0,1615.0,1614.9,12.184501]
[1744727447276,30.0,1615.0,1614.9,1.6572]
[1744727447608,30.0,1615.0,1613.9,1.57]
[1744727447609,6.19361,1614.6,1613.9,1.57]
[1744727447811,6.19273,1614.8,1613.9,4.57]
[1744727448010,10.78537,1614.9,1614.1,6.1954]
[1744727448212,6.19282,1614.8,1614.4,6.19401]
[1744727448421,30.94375499,1615.0,1614.7,6.19303]
[1744727448422,30.0,1615.0,1614.7,6.19303]
[1744727448623,30.0,1615.0,1614.8,6.19256]
[1744727448802,30.0,1615.0,1614.9,6.811586]
[1744727449005,30.0,1615.0,1614.9,11.467786]
[1744727449704,30.0,1615.0,1614.9,11.52970033]
[1744727449873,30.0,1615.0,1614.9,11.467786]
[1744727450076,30.0,1615.0,1614.8,9.134]
[1744727450322,36.19218,1615.0,1614.7,7.76338]
[1744727450521,36.19218,1615.0,1614.6,6.19333]
[1744727450726,30.0,1615.0,1614.8,6.19246]
[1744727451226,30.0,1615.0,1614.7,6.19293]
[1744727451374,30.0,1615.0,1614.5,10.7034]
[1744727451579,30.0,1615.0,1614.8,6.19254]
[1744727451992,30.0,1615.0,1614.9,6.19233]
[1744727452183,30.0,1615.0,1614.7,6.19296]
[1744727452526,36.19196,1615.0,1614.7,6.19294]
[1744727452724,6.19238,1614.9,1614.6,6.19339]
[1744727453234,6.19323,1614.7,1614.4,6.19417]
[1744727453379,1.5885,1614.8,1614.2,1.6105]
[1744727453580,1.5885,1614.8,1614.5,6.19366]
[1744727453821,6.05,1614.9,1614.6,6.19317]
[1744727453979,6.05,1614.9,1614.7,6.19305]
[1744727454496,43.97269,1615.0,1614.8,6.19268]
[1744727454497,30.0,1615.0,1614.8,6.19268]
[1744727454808,6.19243,1614.9,1614.5,6.19373]
[1744727455618,6.19243,1614.9,1614.6,12.38664]
[1744727455814,30.0,1615.0,1614.5,6.19386]
[1744727456014,30.0,1615.0,1614.8,6.19251]
[1744727456218,36.19218,1615.0,1614.6,6.19331]
[1744727456596,30.0,1615.0,1614.6,6.19331]
[1744727456917,6.19283,1614.8,1614.5,6.1938]
[1744727457121,12.38573,1614.8,1614.5,6.19375]
[1744727457324,6.19311,1614.7,1614.3,6.19455]
[1744727457524,12.24244,1614.9,1614.4,0.06194179]
[1744727457727,30.0,1615.0,1614.7,6.19284]
[1744727457926,30.0,1615.0,1614.9,6.19233]
[1744727458830,30.0,1615.0,1614.8,6.19247]
[1744727459031,30.0,1615.0,1614.7,7.71248]
[1744727459205,36.19215,1615.0,1614.7,6.19308]
[1744727459723,42.38427,1615.0,1614.6,12.38676]
[1744727459924,6.19234,1614.9,1614.6,12.38671]
[1744727460224,6.19234,1614.9,1614.5,6.19376]
[1744727460388,6.19243,1614.9,1614.5,6.19357]
[1744727460596,6.19243,1614.9,1614.6,6.19337]
[1744727460792,6.19243,1614.9,1614.5,6.19357]
[1744727461329,12.3851,1614.9,1614.5,6.19357]
[1744727461643,7.85751,1614.8,1614.4,21.49125]
[1744727461941,7.85775,1614.8,1614.4,9.103]
[1744727462145,6.1932,1614.7,1614.4,9.103]
[1744727462294,6.19398,1614.5,1614.1,6.19516]
[1744727462494,1.6647,1614.8,1614.3,6.19449]
[1744727462730,1.6647,1614.8,1614.4,6.19399]
[1744727462909,7.85756,1614.8,1614.5,6.19372]
[1744727463135,6.194,1614.5,1614.2,6.19476]
[1744727463292,6.1935,1614.6,1614.3,6.19443]
[1744727463645,6.19319,1614.7,1614.4,6.19422]
[1744727464000,6.1931,1614.7,1614.1,6.19515]
[1744727464230,1.5372,1614.5,1613.9,15.29816]
[1744727464438,6.1963,1613.9,1613.6,6.197]
[1744727464661,1.5372,1614.1,1613.5,1.5012]
[1744727464837,6.1959,1614.0,1613.7,6.19692]
[1744727465007,7.7326,1614.1,1613.7,6.1968]
[1744727465207,6.19473,1614.3,1614.0,6.19557]
[1744727465415,1.6653,1614.4,1613.9,7.73307]
[1744727465636,6.19386,1614.5,1613.9,1.5369]
[1744727465804,7.85907,1614.6,1614.2,12.38969]
[1744727466017,12.38502,1614.9,1614.5,12.38772]
[1744727466216,30.0,1615.0,1614.8,6.19257]
[1744727466454,30.0,1615.0,1614.9,6.19233]
[1744727466960,30.0,1615.0,1614.9,9.80424727]
[1744727467110,22.0002,1615.0,1614.9,11.32443]
[1744727467455,22.0002,1615.0,1614.9,14.65337901]
[1744727467744,22.0002,1615.0,1614.9,14.10337901]
[1744727467920,22.0002,1615.0,1614.9,10.77443]
[1744727468115,22.0002,1615.0,1614.9,7.77443]
[1744727468533,22.0002,1615.0,1614.9,6.19233]
[1744727468740,22.0002,1615.0,1614.9,7.72523]
[1744727468920,22.0002,1615.0,1614.9,13.577407]
[1744727469934,22.0002,1615.0,1614.9,13.027407]
[1744727470112,22.0002,1615.0,1614.9,13.577407]
[1744727471449,22.0002,1615.0,1614.9,13.027407]
[1744727471617,22.0002,1615.0,1614.9,6.19233]
[1744727471814,22.0002,1615.0,1614.8,15.29654]
[1744727472129,6.19246,1614.9,1614.5,6.19384]
[1744727472327,6.19246,1614.9,1614.4,1.5329]
[1744727472328,6.05,1614.9,1614.4,6.19425]
[1744727472623,6.05,1614.9,1614.4,0.06193438]